fUST/lending_fUST_20240919
["ID","MTS","AMOUNT","RATE_DAILY","PERIOD"]
[338584745,1726749061351,-618.41,0.00016712,2]
[338584746,1726749061362,-2127.67,0.00016712,2]
[338584747,1726749061371,-500.0,0.00016712,2]
[338584748,1726749061381,-860.87,0.00016712,2]
[338584749,1726749061390,-500.0,0.00016712,2]
[338584750,1726749061400,-603.1,0.00016712,2]
[338584751,1726749061410,-500.0,0.00016712,2]
[338584752,1726749061420,-500.0,0.00016712,2]
[338584753,1726749061430,-500.0,0.00016712,2]
[338584754,1726749061440,-957.33,0.00016712,2]
[338584755,1726749061452,-500.0,0.00016712,2]
[338584756,1726749061462,-500.0,0.00016712,2]
[338584757,1726749061472,-1305.64,0.00016712,2]
[338584758,1726749061481,-800.97,0.00016712,2]
[338584759,1726749061491,-1270.23,0.00016712,2]
[338584760,1726749061500,-500.0,0.00016712,2]
[338584761,1726749061509,-2473.19,0.00016712,2]
[338584762,1726749061520,-1025.3,0.00016712,2]
[338584763,1726749061530,-500.0,0.00016712,2]
[338584764,1726749061539,-500.0,0.00016712,2]
[338584765,1726749061549,-500.0,0.00016712,2]
[338584766,1726749061560,-500.0,0.00016712,2]
[338584767,1726749061570,-991.35,0.00016712,2]
[338584768,1726749061580,-497.00598802,0.00016712,2]
[338584769,1726749061591,-500.0,0.00016712,2]
[338584770,1726749061600,-151.0,0.00016712,2]
[338584771,1726749061610,-151.0,0.00016712,2]
[338584772,1726749061619,-151.0,0.00016712,2]
[338584773,1726749061629,-151.0,0.00016712,2]
[338584774,1726749061638,-1543.59,0.00016712,2]
[338584775,1726749061648,-151.0,0.00016712,2]
[338584776,1726749061658,-850.62,0.00016712,2]
[338584777,1726749061667,-500.0,0.00016712,2]
[338584778,1726749061677,-500.0,0.00016712,2]
[338584779,1726749061687,-500.0,0.00016712,2]
[338584780,1726749061696,-500.0,0.00016712,2]
[338584781,1726749061706,-500.0,0.00016712,2]
[338584782,1726749061716,-975.53,0.00016712,2]
[338584783,1726749061726,-812.40568,0.00016712,2]
[338584784,1726749061736,-812.40568,0.00016712,2]
[338584785,1726749061746,-812.40568,0.00016712,2]
[338584786,1726749061755,-812.40568,0.00016712,2]
[338584787,1726749061764,-812.40568,0.00016712,2]
[338584788,1726749061774,-800.69,0.00016712,2]
[338584789,1726749061783,-500.0,0.00016712,2]
[338584790,1726749061793,-812.40568,0.00016712,2]
[338584791,1726749061802,-812.40568,0.00016712,2]
[338584792,1726749061814,-500.0,0.00016712,2]
[338584793,1726749061824,-812.40568,0.00016712,2]
[338584794,1726749061901,-812.40568,0.00016712,2]
[338584795,1726749061910,-812.405688,0.00016712,2]
[338584796,1726749061920,-500.0,0.00016712,2]
[338584797,1726749061930,-500.0,0.00016712,2]
[338584798,1726749061939,-500.0,0.00016712,2]
[338584799,1726749061948,-500.0,0.00016712,2]
[338584800,1726749061958,-500.0,0.00016712,2]
[338584801,1726749061967,-934.96,0.00016712,2]
[338584802,1726749061978,-1217.48,0.00016712,2]
[338584803,1726749061987,-500.0,0.00016712,2]
[338584804,1726749061998,-1052.81,0.00016712,2]
[338584805,1726749062008,-549.84,0.00016712,2]
[338584806,1726749062018,-1016.32,0.00016712,2]
[338584807,1726749062027,-500.0,0.00016712,2]
[338584808,1726749062038,-154.172342,0.00016712,2]
[338584809,1726749062049,-1066.49,0.00016712,2]
[338584810,1726749062064,-593.45,0.00016712,2]
[338584811,1726749062073,-219.55260321,0.00016712,2]
[338584812,1726749062083,-1160.44,0.00016712,2]
[338584813,1726749062093,-500.0,0.00016712,2]
[338584814,1726749062102,-500.0,0.00016712,2]
[338584815,1726749062112,-864.21,0.00016712,2]
[338584816,1726749062123,-500.0,0.00016712,2]
[338584817,1726749062132,-582.78,0.00016712,2]
[338584818,1726749062142,-500.0,0.00016712,2]
[338584819,1726749062151,-500.0,0.00016712,2]
[338584820,1726749062161,-500.0,0.00016712,2]
[338584821,1726749062176,-500.0,0.00016712,2]
[338584822,1726749062186,-694.3,0.00016712,2]
[338584823,1726749062196,-500.0,0.00016712,2]
[338584824,1726749062206,-500.0,0.00016712,2]
[338584825,1726749062217,-966.0,0.00016712,2]
[338584826,1726749062227,-500.0,0.00016712,2]
[338584827,1726749062238,-500.0,0.00016712,2]
[338584828,1726749062248,-500.0,0.00016712,2]
[338584829,1726749062260,-2520.13,0.00016712,2]
[338584830,1726749062272,-599.08,0.00016712,2]
[338584831,1726749062281,-500.0,0.00016712,2]
[338584832,1726749062291,-500.0,0.00016712,2]
[338584833,1726749062301,-500.0,0.00016712,2]
[338584834,1726749062311,-500.0,0.00016712,2]
[338584835,1726749062321,-729.23,0.00016712,2]
[338584836,1726749062331,-151.0,0.00016712,2]
[338584837,1726749062341,-760.66,0.00016712,2]
[338584838,1726749062350,-181.553746,0.00016712,2]
[338584839,1726749062359,-500.0,0.00016712,2]
[338584840,1726749062368,-500.0,0.00016712,2]
[338584841,1726749062377,-500.0,0.00016712,2]
[338584842,1726749062387,-500.0,0.00016712,2]
[338584843,1726749062396,-744.67,0.00016712,2]
[338584844,1726749062406,-565.95,0.00016712,2]
[338584845,1726749062415,-500.0,0.00016712,2]
[338584846,1726749062425,-859.51,0.00016712,2]
[338584847,1726749062436,-670.21,0.00016712,2]
[338584848,1726749062445,-501.89,0.00016712,2]
[338584849,1726749062455,-500.0,0.00016712,2]
[338584850,1726749062465,-500.0,0.00016712,2]
[338584851,1726749062475,-500.0,0.00016712,2]
[338584852,1726749062484,-563.53,0.00016712,2]
[338584853,1726749062494,-500.0,0.00016712,2]
[338584854,1726749062504,-500.0,0.00016712,2]
[338584855,1726749062514,-507.52,0.00016712,2]
[338584856,1726749062523,-500.0,0.00016712,2]
[338584857,1726749062533,-614.427804,0.00016712,2]
[338584858,1726749062542,-151.0,0.00016712,2]
[338584859,1726749062552,-614.427804,0.00016712,2]
[338584860,1726749062565,-238.098178,0.00016712,2]
[338584861,1726749062575,-614.427804,0.00016712,2]
[338584862,1726749062584,-614.427804,0.00016712,2]
[338584863,1726749062593,-1302.97,0.00016712,2]
[338584864,1726749062602,-500.0,0.00016712,2]
[338584865,1726749062612,-500.0,0.00016712,2]
[338584866,1726749062622,-1515.32,0.00016712,2]
[338584867,1726749062632,-500.0,0.00016712,2]
[338584868,1726749062642,-688.27,0.00016712,2]
[338584869,1726749062652,-614.427804,0.00016712,2]
[338584870,1726749062662,-614.427804,0.00016712,2]
[338584871,1726749062672,-614.427804,0.00016712,2]
[338584872,1726749062682,-614.427794,0.00016712,2]
[338584873,1726749062691,-500.0,0.00016712,2]
[338584874,1726749062701,-500.0,0.00016712,2]
[338584875,1726749062710,-819.45,0.00016712,2]
[338584876,1726749062720,-151.0,0.00016712,2]
[338584877,1726749062730,-168.357058,0.00016712,2]
[338584878,1726749062740,-500.0,0.00016712,2]
[338584879,1726749062750,-595.03,0.00016712,2]
[338584880,1726749062759,-502.32566225,0.00016712,2]
[338584881,1726749062769,-568.37636911,0.00016712,2]
[338584882,1726749062779,-500.0,0.00016712,2]
[338584883,1726749062789,-500.0,0.00016712,2]
[338584884,1726749062803,-500.0,0.00016712,2]
[338584885,1726749062818,-1873.36,0.00016712,2]
[338584886,1726749062828,-500.0,0.00016712,2]
[338584887,1726749062838,-915.93,0.00016712,2]
[338584888,1726749062848,-1028.66,0.00016712,2]
[338584889,1726749062858,-500.0,0.00016712,2]
[338584890,1726749062868,-1254.1,0.00016712,2]
[338584891,1726749062877,-504.66715886,0.00016712,2]
[338584892,1726749062887,-3013.49,0.00016712,2]
[338584893,1726749062897,-500.0,0.00016712,2]
[338584894,1726749062907,-500.0,0.00016712,2]
[338584895,1726749062917,-500.0,0.00016712,2]
[338584896,1726749062927,-500.0,0.00016712,2]
[338584897,1726749062936,-525.77,0.00016712,2]
[338584898,1726749062946,-500.0,0.00016712,2]
[338584899,1726749062956,-1548.72,0.00016712,2]
[338584900,1726749062966,-500.0,0.00016712,2]
[338584901,1726749062981,-500.0,0.00016712,2]
[338584902,1726749062993,-500.0,0.00016712,2]
[338584903,1726749063003,-500.0,0.00016712,2]
[338584904,1726749063012,-915.33,0.00016712,2]
[338584905,1726749063021,-500.0,0.00016712,2]
[338584906,1726749063031,-500.0,0.00016712,2]
[338584907,1726749063041,-1215.9,0.00016712,2]
[338584908,1726749063051,-500.0,0.00016712,2]
[338584909,1726749063064,-500.0,0.00016712,2]
[338584910,1726749063074,-848.23,0.00016712,2]
[338584911,1726749063083,-509.96,0.00016712,2]
[338584912,1726749063092,-500.0,0.00016712,2]
[338584913,1726749063102,-1601.22,0.00016712,2]
[338584914,1726749063111,-500.0,0.00016712,2]
[338584915,1726749063120,-500.0,0.00016712,2]
[338584916,1726749063130,-927.046173,0.00016712,2]
[338584917,1726749063140,-927.046173,0.00016712,2]
[338584918,1726749063149,-500.0,0.00016712,2]
[338584919,1726749063159,-927.046173,0.00016712,2]
[338584920,1726749063168,-927.046174,0.00016712,2]
[338584921,1726749063177,-2477.59,0.00016712,2]
[338584922,1726749063186,-500.0,0.00016712,2]
[338584923,1726749063196,-500.0,0.00016712,2]
[338584924,1726749063206,-566.1961,0.00016712,2]
[338584925,1726749063215,-514.50119356,0.00016712,2]
[338584926,1726749063224,-566.19609016,0.00016712,2]
[338584927,1726749063234,-1115.05,0.00016712,2]
[338584928,1726749063243,-294.00865326,0.00016712,2]
[338584929,1726749063252,-976.67,0.00016712,2]
[338584930,1726749063261,-769.51,0.00016712,2]
[338584931,1726749063271,-71377.37,0.00016712,2]
[338584932,1726749063280,-839.82,0.00016712,2]
[338584933,1726749063289,-500.0,0.00016712,2]
[338584934,1726749063298,-888.11,0.00016712,2]
[338584935,1726749063310,-500.0,0.00016712,2]
[338584936,1726749063319,-500.0,0.00016712,2]
[338584937,1726749063328,-500.0,0.00016712,2]
[338584938,1726749063337,-2171.42,0.00016712,2]
[338584939,1726749063346,-500.0,0.00016712,2]
[338584940,1726749063356,-500.0,0.00016712,2]
[338584941,1726749063366,-8473.92,0.00016712,2]
[338584942,1726749063375,-500.0,0.00016712,2]
[338584943,1726749063385,-828.33,0.00016712,2]
[338584944,1726749063394,-500.0,0.00016712,2]
[338584945,1726749063403,-500.0,0.00016712,2]
[338584946,1726749063412,-233.08817321,0.00016712,2]
[338584947,1726749063422,-851.896256,0.00016712,2]
[338584948,1726749063432,-1475.05,0.00016712,2]
[338584949,1726749063441,-1079.81,0.00016712,2]
[338584950,1726749063451,-1307.03,0.00016712,2]
[338584951,1726749063460,-500.0,0.00016712,2]
[338584952,1726749063469,-500.0,0.00016712,2]
[338584953,1726749063478,-1278.471369,0.00016712,2]
[338584954,1726749063487,-851.896255,0.00016712,2]
[338584955,1726749063497,-500.0,0.00016712,2]
[338584956,1726749063507,-153.319818,0.00016712,2]
[338584957,1726749063516,-500.0,0.00016712,2]
[338584958,1726749063525,-500.0,0.00016712,2]
[338584959,1726749063535,-887.72,0.00016712,2]
[338584960,1726749063544,-1278.471363,0.00016712,2]
[338584961,1726749063553,-500.0,0.00016712,2]
[338584962,1726749063567,-704.55,0.00016712,2]
[338584963,1726749063576,-500.0,0.00016712,2]
[338584964,1726749063585,-500.0,0.00016712,2]
[338584965,1726749063594,-623.1,0.00016712,2]
[338584966,1726749063605,-861.973197,0.00016712,2]
[338584967,1726749063615,-1612.07,0.00016712,2]
[338584968,1726749063624,-2073.71,0.00016712,2]
[338584969,1726749063634,-158.97031663,0.00016712,2]
[338584970,1726749063644,-500.0,0.00016712,2]
[338584971,1726749063654,-335.099987,0.00016712,2]
[338584972,1726749063664,-1193.96,0.00016712,2]
[338584973,1726749063673,-630.76,0.00016712,2]
[338584974,1726749063683,-3303.541746,0.00016712,2]
[338584975,1726749063692,-861.973192,0.00016712,2]
[338584976,1726749063702,-501.96747097,0.00016712,2]
[338584977,1726749063712,-335.099994,0.00016712,2]
[338584978,1726749063721,-500.0,0.00016712,2]
[338584979,1726749063740,-3303.54173776,0.00016712,2]
[338584980,1726749063751,-500.0,0.00016712,2]
[338584981,1726749063760,-1902.18,0.00016712,2]
[338584982,1726749063770,-896.34,0.00016712,2]
[338584983,1726749063780,-532.50545567,0.00016712,2]
[338584984,1726749063790,-353.85,0.00016712,2]
[338584985,1726749063800,-500.0,0.00016712,2]
[338584986,1726749063814,-1079.55,0.00016712,2]
[338584987,1726749063824,-500.0,0.00016712,2]
[338584988,1726749063841,-925.92,0.00016712,2]
[338584989,1726749063851,-829.597382,0.00016712,2]
[338584990,1726749063861,-500.0,0.00016712,2]
[338584991,1726749063872,-500.0,0.00016712,2]
[338584992,1726749063882,-151.0,0.00016712,2]
[338584993,1726749063892,-829.597372,0.00016712,2]
[338584994,1726749063902,-500.0,0.00016712,2]
[338584995,1726749063911,-500.0,0.00016712,2]
[338584996,1726749063921,-500.0,0.00016712,2]
[338584997,1726749063932,-500.0,0.00016712,2]
[338584998,1726749063942,-500.0,0.00016712,2]
[338584999,1726749063953,-500.0,0.00016712,2]
[338585000,1726749063963,-500.0,0.00016712,2]
[338585001,1726749063973,-500.0,0.00016712,2]
[338585002,1726749063983,-1498.25,0.00016712,2]
[338585003,1726749063993,-500.0,0.00016712,2]
[338585004,1726749064003,-532.620686,0.00016712,2]
[338585005,1726749064014,-532.620686,0.00016712,2]
[338585006,1726749064024,-500.0,0.00016712,2]
[338585007,1726749064034,-532.620686,0.00016712,2]
[338585008,1726749064044,-532.62068,0.00016712,2]
[338585009,1726749064054,-500.0,0.00016712,2]
[338585010,1726749064074,-500.0,0.00016712,2]
[338585011,1726749064084,-213.77734259,0.00016712,2]
[338585012,1726749064094,-500.0,0.00016712,2]
[338585013,1726749064104,-151.0,0.00016712,2]
[338585014,1726749064114,-151.0,0.00016712,2]
[338585015,1726749064124,-1084.03353,0.00016712,2]
[338585016,1726749064133,-500.0,0.00016712,2]
[338585017,1726749064144,-1084.03353,0.00016712,2]
[338585018,1726749064154,-1084.03353,0.00016712,2]
[338585019,1726749064165,-500.0,0.00016712,2]
[338585020,1726749064176,-1084.03353,0.00016712,2]
[338585021,1726749064186,-500.0,0.00016712,2]
[338585022,1726749064195,-1084.03353,0.00016712,2]
[338585023,1726749064206,-1084.03353,0.00016712,2]
[338585024,1726749064216,-1084.03353,0.00016712,2]
[338585025,1726749064226,-1084.03353,0.00016712,2]
[338585026,1726749064235,-606.66,0.00016712,2]
[338585027,1726749064245,-1084.03353,0.00016712,2]
[338585028,1726749064255,-3013.497039,0.00016712,2]
[338585029,1726749064264,-1084.033532,0.00016712,2]
[338585030,1726749064274,-500.0,0.00016712,2]
[338585031,1726749064284,-500.0,0.00016712,2]
[338585032,1726749064294,-500.0,0.00016712,2]
[338585033,1726749064304,-3013.497035,0.00016712,2]
[338585034,1726749064316,-1878.28,0.00016712,2]
[338585035,1726749064325,-500.0,0.00016712,2]
[338585036,1726749064334,-500.0,0.00016712,2]
[338585037,1726749064344,-500.0,0.00016712,2]
[338585038,1726749064354,-500.75781459,0.00016712,2]
[338585039,1726749064364,-443.079611,0.00016712,2]
[338585040,1726749064381,-443.079611,0.00016712,2]
[338585041,1726749064391,-443.079611,0.00016712,2]
[338585042,1726749064401,-443.079611,0.00016712,2]
[338585043,1726749064411,-443.079611,0.00016712,2]
[338585044,1726749064422,-668.39,0.00016712,2]
[338585045,1726749064432,-443.079611,0.00016712,2]
[338585046,1726749064442,-443.079611,0.00016712,2]
[338585047,1726749064452,-443.079611,0.00016712,2]
[338585048,1726749064462,-443.079611,0.00016712,2]
[338585049,1726749064472,-443.079614,0.00016712,2]
[338585050,1726749064483,-500.0,0.00016712,2]
[338585051,1726749064493,-552.85,0.00016712,2]
[338585052,1726749064503,-500.0,0.00016712,2]
[338585053,1726749064512,-500.0,0.00016712,2]
[338585054,1726749064522,-616.72,0.00016712,2]
[338585055,1726749064533,-4129.23,0.00016712,2]
[338585056,1726749064543,-500.0,0.00016712,2]
[338585057,1726749064553,-500.0,0.00016712,2]
[338585058,1726749064567,-564.32,0.00016712,2]
[338585059,1726749064578,-500.0,0.00016712,2]
[338585060,1726749064587,-500.0,0.00016712,2]
[338585061,1726749064598,-973.96,0.00016712,2]
[338585062,1726749064607,-623.68,0.00016712,2]
[338585063,1726749064617,-500.0,0.00016712,2]
[338585064,1726749064627,-500.0,0.00016712,2]
[338585065,1726749064637,-485.511963,0.00016712,2]
[338585066,1726749064647,-485.511963,0.00016712,2]
[338585067,1726749064656,-878.69,0.00016712,2]
[338585068,1726749064666,-485.511963,0.00016712,2]
[338585069,1726749064676,-485.511963,0.00016712,2]
[338585070,1726749064685,-485.511963,0.00016712,2]
[338585071,1726749064695,-1036.84,0.00016712,2]
[338585072,1726749064705,-485.511963,0.00016712,2]
[338585073,1726749064714,-500.0,0.00016712,2]
[338585074,1726749064724,-485.511963,0.00016712,2]
[338585075,1726749064733,-485.511963,0.00016712,2]
[338585076,1726749064743,-485.511963,0.00016712,2]
[338585077,1726749064753,-485.511961,0.00016712,2]
[338585078,1726749064762,-590.34850146,0.00016712,2]
[338585079,1726749064772,-602.3,0.00016712,2]
[338585080,1726749064782,-500.0,0.00016712,2]
[338585081,1726749064792,-563.57,0.00016712,2]
[338585082,1726749064801,-500.0,0.00016712,2]
[338585083,1726749064813,-1767.72,0.00016712,2]
[338585084,1726749064823,-500.0,0.00016712,2]
[338585085,1726749064832,-500.0,0.00016712,2]
[338585086,1726749064842,-500.0,0.00016712,2]
[338585087,1726749064852,-513.55,0.00016712,2]
[338585088,1726749064862,-500.0,0.00016712,2]
[338585089,1726749064871,-500.0,0.00016712,2]
[338585090,1726749064881,-500.0,0.00016712,2]
[338585091,1726749064891,-865.08,0.00016712,2]
[338585092,1726749064900,-500.0,0.00016712,2]
[338585093,1726749064910,-500.0,0.00016712,2]
[338585094,1726749064920,-307.715995,0.00016712,2]
[338585095,1726749064930,-307.715995,0.00016712,2]
[338585096,1726749064941,-3343.44,0.00016712,2]
[338585097,1726749064950,-500.0,0.00016712,2]
[338585098,1726749064960,-307.715995,0.00016712,2]
[338585099,1726749064970,-307.715997,0.00016712,2]
[338585100,1726749064983,-501.72,0.00016712,2]
[338585101,1726749064993,-605.22271873,0.00016712,2]
[338585102,1726749065003,-503.6,0.00016712,2]
[338585103,1726749065014,-500.0,0.00016712,2]
[338585104,1726749065025,-500.0,0.00016712,2]
[338585105,1726749065036,-572.58,0.00016712,2]
[338585106,1726749065046,-500.0,0.00016712,2]
[338585107,1726749065056,-500.0,0.00016712,2]
[338585108,1726749065067,-151.0,0.00016712,2]
[338585109,1726749065077,-153.278653,0.00016712,2]
[338585110,1726749065087,-500.0,0.00016712,2]
[338585111,1726749065098,-578.642111,0.00016712,2]
[338585112,1726749065108,-500.0,0.00016712,2]
[338585113,1726749065118,-578.642111,0.00016712,2]
[338585114,1726749065128,-578.642111,0.00016712,2]
[338585115,1726749065138,-578.642102,0.00016712,2]
[338585116,1726749065149,-500.0,0.00016712,2]
[338585117,1726749065158,-500.0,0.00016712,2]
[338585118,1726749065169,-500.0,0.00016712,2]
[338585119,1726749065178,-500.0,0.00016712,2]
[338585120,1726749065188,-500.0,0.00016712,2]
[338585121,1726749065199,-500.0,0.00016712,2]
[338585122,1726749065209,-500.0,0.00016712,2]
[338585123,1726749065219,-500.0,0.00016712,2]
[338585124,1726749065230,-500.0,0.00016712,2]
[338585125,1726749065240,-507.65,0.00016712,2]
[338585126,1726749065250,-566.810426,0.00016712,2]
[338585127,1726749065262,-566.810426,0.00016712,2]
[338585128,1726749065272,-964.46,0.00016712,2]
[338585129,1726749065282,-500.0,0.00016712,2]
[338585130,1726749065292,-500.0,0.00016712,2]
[338585131,1726749065302,-552.12,0.00016712,2]
[338585132,1726749065314,-566.810426,0.00016712,2]
[338585133,1726749065324,-566.810416,0.00016712,2]
[338585134,1726749065334,-500.0,0.00016712,2]
[338585135,1726749065345,-500.0,0.00016712,2]
[338585136,1726749065355,-151.0,0.00016712,2]
[338585137,1726749065371,-151.0,0.00016712,2]
[338585138,1726749065381,-500.0,0.00016712,2]
[338585139,1726749065391,-954.07,0.00016712,2]
[338585140,1726749065401,-500.0,0.00016712,2]
[338585141,1726749065411,-1063.86,0.00016712,2]
[338585142,1726749065421,-1391.22,0.00016712,2]
[338585143,1726749065431,-500.0,0.00016712,2]
[338585144,1726749065442,-500.0,0.00016712,2]
[338585145,1726749065452,-500.0,0.00016712,2]
[338585146,1726749065463,-500.0,0.00016712,2]
[338585147,1726749065473,-500.0,0.00016712,2]
[338585148,1726749065483,-812.31,0.00016712,2]
[338585149,1726749065494,-1872.82532,0.00016712,2]
[338585150,1726749065508,-1872.82532,0.00016712,2]
[338585151,1726749065518,-500.0,0.00016712,2]
[338585152,1726749065529,-500.0,0.00016712,2]
[338585153,1726749065539,-380.84,0.00016712,2]
[338585154,1726749065549,-500.0,0.00016712,2]
[338585155,1726749065561,-500.0,0.00016712,2]
[338585156,1726749065571,-1872.82532,0.00016712,2]
[338585157,1726749065582,-1872.825319,0.00016712,2]
[338585158,1726749065592,-342.56,0.00016712,2]
[338585159,1726749065602,-1446.39,0.00016712,2]
[338585160,1726749065612,-2354.702487,0.00016712,2]
[338585161,1726749065622,-2354.702487,0.00016712,2]
[338585162,1726749065633,-153.0,0.00016712,2]
[338585163,1726749065643,-153.0,0.00016712,2]
[338585164,1726749065653,-153.0,0.00016712,2]
[338585165,1726749065663,-153.0,0.00016712,2]
[338585166,1726749065673,-153.0,0.00016712,2]
[338585167,1726749065683,-153.0,0.00016712,2]
[338585168,1726749065693,-153.0,0.00016712,2]
[338585169,1726749065704,-153.0,0.00016712,2]
[338585170,1726749065713,-153.0,0.00016712,2]
[338585171,1726749065724,-153.0,0.00016712,2]
[338585172,1726749065734,-306.0,0.00016712,2]
[338585173,1726749065744,-500.0,0.00016773,2]
[338585174,1726749065754,-500.0,0.00016773,2]
[338585175,1726749065764,-500.0,0.00016773,2]
[338585176,1726749065774,-500.0,0.00016773,2]
[338585177,1726749065784,-503.76687854,0.00016773,2]
[338585178,1726749065793,-500.0,0.00016773,2]
[338585179,1726749065804,-535.37981013,0.00016773,2]
[338585180,1726749065817,-1000.0000001,0.0001678,2]
[338585181,1726749065827,-150.0,0.00016837,2]
[338585182,1726749065837,-208.7923626,0.00016856,2]
[338585183,1726749065847,-208.0548235,0.00016856,2]
[338585184,1726749065857,-587.0,0.00016877,2]
[338585185,1726749065867,-9207.44731035,0.00016985,2]
[338585186,1726749065877,-152.20976,0.00016985,2]
[338585187,1726749065887,-152.20976,0.00016985,2]
[338585188,1726749065897,-256.474057,0.00016985,2]
[338585189,1726749065907,-151.0,0.00016986,2]
[338585190,1726749065916,-151.0,0.00016986,2]
[338585191,1726749065927,-273.598539,0.00016986,2]
[338585192,1726749065938,-273.598539,0.00016986,2]
[338585193,1726749065947,-273.598539,0.00016986,2]
[338585194,1726749065957,-273.598532,0.00016986,2]
[338585195,1726749065968,-265.719872,0.00016986,2]
[338585196,1726749065979,-500.0,0.00016986,2]
[338585197,1726749065991,-500.0,0.00016986,2]
[338585198,1726749066002,-500.0,0.00016986,2]
[338585199,1726749066012,-300.12116,0.00016986,2]
[338585200,1726749066023,-399.15375636,0.00016986,2]
[338585201,1726749066033,-500.0,0.00016986,2]
[338585202,1726749066043,-500.0,0.00016986,2]
[338585203,1726749066053,-564.40204833,0.00016986,2]
[338585204,1726749066068,-500.0,0.00016986,2]
[338585205,1726749066079,-500.0,0.00016986,2]
[338585206,1726749066089,-500.0,0.00016986,2]
[338585207,1726749066099,-654.78,0.00016986,2]
[338585208,1726749066110,-500.0,0.00016986,2]
[338585209,1726749066120,-500.0,0.00016986,2]
[338585210,1726749066130,-500.0,0.00016986,2]
[338585211,1726749066141,-500.0,0.00016986,2]
[338585212,1726749066151,-500.0,0.00016986,2]
[338585213,1726749066162,-500.0,0.00016986,2]
[338585214,1726749066172,-1013.41,0.00016986,2]
[338585215,1726749066183,-500.0,0.00016986,2]
[338585216,1726749066193,-500.0,0.00016986,2]
[338585217,1726749066203,-1234.95,0.00016986,2]
[338585218,1726749066213,-1219.13,0.00016986,2]
[338585219,1726749066224,-500.0,0.00016986,2]
[338585220,1726749066234,-583.77,0.00016986,2]
[338585221,1726749066244,-500.0,0.00016986,2]
[338585222,1726749066255,-500.0,0.00016986,2]
[338585223,1726749066265,-500.0,0.00016986,2]
[338585224,1726749066275,-574.05,0.00016986,2]
[338585225,1726749066285,-500.0,0.00016986,2]
[338585226,1726749066295,-500.0,0.00016986,2]
[338585227,1726749066305,-500.0,0.00016986,2]
[338585228,1726749066319,-500.0,0.00016986,2]
[338585229,1726749066328,-640.27,0.00016986,2]
[338585230,1726749066339,-500.0,0.00016986,2]
[338585231,1726749066349,-500.0,0.00016986,2]
[338585232,1726749066361,-500.0,0.00016986,2]
[338585233,1726749066372,-817.77,0.00016986,2]
[338585234,1726749066382,-500.0,0.00016986,2]
[338585235,1726749066391,-1359.72,0.00016986,2]
[338585236,1726749066401,-500.0,0.00016986,2]
[338585237,1726749066411,-500.0,0.00016986,2]
[338585238,1726749066421,-500.0,0.00016986,2]
[338585239,1726749066431,-500.0,0.00016986,2]
[338585240,1726749066441,-500.0,0.00016986,2]
[338585241,1726749066452,-898.26,0.00016986,2]
[338585242,1726749066462,-1500.67,0.00016986,2]
[338585243,1726749066472,-918.96,0.00016986,2]
[338585244,1726749066482,-500.0,0.00016986,2]